[Event "NSV Open-ch Rapid 2019"]
[Site "Lueneburg"]
[Date "2019.08.03"]
[Round "2.19"]
[White "Serrer, David"]
[Black "Kotyk, Michael"]
[Result "0-1"]
[ECO "C50"]
[WhiteElo "1516"]
[BlackElo "1998"]
[Annotator "NA RC"]
[PlyCount "82"]
[EventDate "2019.08.03"]
[EventType "swiss"]
[EventCountry "GER"]
[SourceTitle "playchess.com"]
[Source "ChessBase"]
[SourceQuality "1"]
[TimeControl "600+5"]

1. e4 {[%emt 0:00:00]} e5 {[%emt 0:00:00]} 2. Nf3 {[%emt 0:00:00]} Nc6 {[%emt 0:00:00]} 3. Bc4 {[%emt 0:00:03]} Bc5 {[%emt 0:00:00]} 4. d3 {[%emt 0:00:11]} Nf6 {[%emt 0:00:02]} 5. O-O {[%emt 0:00:04]} O-O {[%emt 0:00:04]} 6. a3 {[%emt 0:00:03]} d6 {[%emt 0:00:05]} 7. Be3 {[%emt 0:00:04]} Bb6 {[%emt 0:00:18]} 8. Nbd2 {[%emt 0:00:04]} Ne7 {[%emt 0:00:06]} 9. h3 {[%emt 0:00:02]} Ng6 {[%emt 0:00:03]} 10. Nh2 {[%emt 0:00:54]} Bxe3 {[%emt 0:00:25]} 11. fxe3 {[%emt 0:00:01]} d5 {[%emt 0:00:01]} 12. exd5 {[%emt 0:00:24]} Nxd5 {[%emt 0:00:01]} 13. Bxd5 {[%emt 0:00:19]} Qxd5 {[%emt 0:00:03]} 14. Qf3 {[%emt 0:00:04]} Qxf3 {[%emt 0:00:24]} 15. Nhxf3 {[%emt 0:00:16]} f5 {[%emt 0:00:04]} 16. e4 {[%emt 0:00:05]} f4 {[%emt 0:00:09]} 17. Nc4 {[%emt 0:00:07]} Re8 {[%emt 0:00:05]} 18. Rfe1 {[%emt 0:00:41]} b5 {[%emt 0:00:18]} 19. Na5 {[%emt 0:00:31]} Bd7 {[%emt 0:00:04]} 20. Nb3 {[%emt 0:00:52]} h6 {[%emt 0:00:18]} 21. Rac1 {[%emt 0:00:19]} Be6 {[%emt 0:00:28]} 22. Nc5 {[%emt 0:00:33]} Bf7 {[%emt 0:00:03]} 23. c4 {[%emt 0:00:14]} bxc4 {[%emt 0:00:06]} 24. dxc4 {[%emt 0:00:04]} Red8 {[%emt 0:00:04]} 25. b4 {[%emt 0:00:29]} Kf8 {[%emt 0:00:18]} 26. Rcd1 {[%emt 0:01:19]} Ke7 {[%emt 0:00:02]} 27. Nb7 {[%emt 0:00:44]} Rxd1 {[%emt 0:00:14]} 28. Rxd1 {[%emt 0:00:02]} Be8 {[%emt 0:00:41]} 29. c5 {[%emt 0:00:41]} Bc6 {[%emt 0:00:06]} 30. Na5 {[%emt 0:00:11]} Bxe4 {[%emt 0:00:02]} 31. Re1 {[%emt 0:00:06]} Bxf3 {[%emt 0:00:02]} 32. gxf3 {[%emt 0:00:02]} Ke6 {[%emt 0:00:08]} 33. Rd1 {[%emt 0:00:19]} Ne7 {[%emt 0:00:12]} 34. Nc4 {[%emt 0:00:39]} g5 {[%emt 0:00:03]} 35. Re1 {[%emt 0:00:18]} Ng6 {[%emt 0:00:01]} 36. Rd1 {[%emt 0:00:15]} h5 {[%emt 0:00:14]} 37. Kf2 {[%emt 0:00:32]} g4 {[%emt 0:00:16]} 38. hxg4 {[%emt 0:00:16]} hxg4 {[%emt 0:00:01]} 39. fxg4 {[%emt 0:00:35]} e4 {[%emt 0:00:01]} 40. Re1 {[%emt 0:00:14]} Kd5 {[%emt 0:00:02]} 41. Nd2 {[%emt 0:00:03]} e3+ {[%emt 0:00:04]} 0-1

[Event "NSV Open-ch Rapid 2019"]
[Site "Lueneburg"]
[Date "2019.08.03"]
[Round "2.20"]
[White "Britsch, Benjamin"]
[Black "Rick, Niklas Corvin"]
[Result "1-0"]
[ECO "D00"]
[WhiteElo "1835"]
[BlackElo "1444"]
[Annotator "NA RC"]
[PlyCount "35"]
[EventDate "2019.08.03"]
[EventType "swiss"]
[EventCountry "GER"]
[SourceTitle "playchess.com"]
[Source "ChessBase"]
[SourceQuality "1"]
[TimeControl "600+5"]

1. d4 {[%emt 0:00:00]} d5 {[%emt 0:00:00]} 2. Bg5 {[%emt 0:00:00]} Bf5 {[%emt 0:00:16]} 3. e3 {[%emt 0:00:07]} Nf6 {[%emt 0:00:09]} 4. c4 {[%emt 0:00:08]} e6 {[%emt 0:00:03]} 5. Nc3 {[%emt 0:00:21]} Be7 {[%emt 0:00:14]} 6. Qb3 {[%emt 0:00:35]} Qc8 {[%emt 0:00:42]} 7. cxd5 {[%emt 0:00:15]} exd5 {[%emt 0:00:52]} 8. Bxf6 {[%emt 0:00:27]} Bxf6 {[%emt 0:00:21]} 9. Nxd5 {[%emt 0:00:03]} Bd8 {[%emt 0:00:24]} 10. Nc3 {[%emt 0:00:46]} Nc6 {[%emt 0:00:28]} 11. Bb5 {[%emt 0:00:15]} Qd7 {[%emt 0:00:28]} 12. d5 {[%emt 0:00:18]} O-O {[%emt 0:07:03]} 13. dxc6 {[%emt 0:00:15]} bxc6 {[%emt 0:00:00]} 14. Be2 {[%emt 0:00:19]} Bf6 {[%emt 0:00:00]} 15. Rd1 {[%emt 0:00:15]} Qe7 {[%emt 0:00:00]} 16. Bd3 {[%emt 0:00:34]} Bxd3 {[%emt 0:00:00]} 17. Rxd3 {[%emt 0:00:03]} Qe4 {[%emt 0:00:00]} 18. Nxe4 {[%emt 0:00:16]} 1-0

[Event "NSV Open-ch Rapid 2019"]
[Site "Lueneburg"]
[Date "2019.08.03"]
[Round "2.21"]
[White "Kueck, Alexander"]
[Black "Weidenhoefer, Max"]
[Result "0-1"]
[ECO "B18"]
[WhiteElo "1374"]
[BlackElo "1805"]
[Annotator "NA RC"]
[PlyCount "32"]
[EventDate "2019.08.03"]
[EventType "swiss"]
[EventCountry "GER"]
[SourceTitle "playchess.com"]
[Source "ChessBase"]
[SourceQuality "1"]
[TimeControl "600+5"]

1. e4 {[%emt 0:00:00]} c6 {[%emt 0:00:00]} 2. d4 {[%emt 0:00:00]} d5 {[%emt 0:00:00]} 3. Nc3 {[%emt 0:00:04]} dxe4 {[%emt 0:00:00]} 4. Nxe4 {[%emt 0:10:16]} Bf5 5. Nc3 {[%emt 0:00:00]} e6 {[%emt 0:00:08]} 6. Nf3 {[%emt 0:00:00]} Nf6 {[%emt 0:00:11]} 7. Bf4 {[%emt 0:00:00]} Nd5 {[%emt 0:00:04]} 8. Bd2 {[%emt 0:00:00]} Nd7 {[%emt 0:00:05]} 9. Bc4 {[%emt 0:00:00]} N7b6 {[%emt 0:00:05]} 10. Qe2 {[%emt 0:00:00]} Bxc2 {[%emt 0:00:07]} 11. O-O {[%emt 0:00:00]} Be7 {[%emt 0:00:05]} 12. Ne1 {[%emt 0:00:00]} Bg6 {[%emt 0:00:09]} 13. Qf3 {[%emt 0:00:00]} Nxc4 {[%emt 0:00:04]} 14. Qe2 {[%emt 0:00:00]} Nxb2 {[%emt 0:00:09]} 15. Be3 {[%emt 0:00:00]} Nxc3 {[%emt 0:10:08]} 16. Rc1 {[%emt 0:00:00]} Nxe2+ {[%emt 0:00:00]} 0-1

[Event "NSV Open-ch Rapid 2019"]
[Site "Lueneburg"]
[Date "2019.08.03"]
[Round "2.22"]
[White "Rothenberg, Jannik"]
[Black "Schubert, Karl Heinz"]
[Result "1-0"]
[ECO "A40"]
[WhiteElo "1859"]
[BlackElo "1335"]
[Annotator "NA RC"]
[PlyCount "51"]
[EventDate "2019.08.03"]
[EventType "swiss"]
[EventCountry "GER"]
[SourceTitle "playchess.com"]
[Source "ChessBase"]
[SourceQuality "1"]
[TimeControl "600+5"]

1. d4 {[%emt 0:00:00]} b6 {[%emt 0:00:00]} 2. c4 {[%emt 0:00:01]} d6 {[%emt 0:00:00]} 3. Nc3 {[%emt 0:00:01]} Bb7 {[%emt 0:00:02]} 4. e4 {[%emt 0:00:01]} Nd7 {[%emt 0:00:08]} 5. f4 {[%emt 0:00:04]} e6 {[%emt 0:00:16]} 6. Nf3 {[%emt 0:00:02]} Ngf6 {[%emt 0:00:07]} 7. e5 {[%emt 0:00:10]} dxe5 {[%emt 0:00:06]} 8. fxe5 {[%emt 0:00:06]} Ng4 {[%emt 0:00:23]} 9. h3 {[%emt 0:00:05]} Nh6 {[%emt 0:00:02]} 10. Bxh6 {[%emt 0:00:05]} gxh6 {[%emt 0:00:02]} 11. Be2 {[%emt 0:00:18]} Bb4 {[%emt 0:00:02]} 12. O-O {[%emt 0:00:06]} Rg8 {[%emt 0:00:16]} 13. Qc2 {[%emt 0:00:09]} Qe7 {[%emt 0:00:12]} 14. Ne4 {[%emt 0:00:21]} O-O-O {[%emt 0:00:10]} 15. a3 {[%emt 0:00:07]} f5 {[%emt 0:00:04]} 16. exf6 {[%emt 0:00:12]} Nxf6 {[%emt 0:00:03]} 17. Nxf6 {[%emt 0:00:06]} Qxf6 {[%emt 0:00:03]} 18. axb4 {[%emt 0:00:10]} Rg6 {[%emt 0:00:36]} 19. Rf2 {[%emt 0:01:03]} Rdg8 {[%emt 0:00:12]} 20. Rxa7 {[%emt 0:00:19]} Kb8 {[%emt 0:00:27]} 21. Rxb7+ {[%emt 0:00:02]} Kxb7 {[%emt 0:00:08]} 22. Qe4+ {[%emt 0:00:05]} Kb8 {[%emt 0:00:06]} 23. Ne5 {[%emt 0:00:09]} Qg5 {[%emt 0:00:52]} 24. Nxg6 {[%emt 0:00:35]} Rxg6 {[%emt 0:00:04]} 25. Rf8+ {[%emt 0:00:04]} Ka7 {[%emt 0:00:05]} 26. Ra8# {[%emt 0:07:49]} 1-0

[Event "NSV Open-ch Rapid 2019"]
[Site "Lueneburg"]
[Date "2019.08.03"]
[Round "2.23"]
[White "Harnack, Bernhard"]
[Black "Krueger, Dietrich"]
[Result "1-0"]
[ECO "A06"]
[WhiteElo "1712"]
[BlackElo "1243"]
[Annotator "NA RC"]
[PlyCount "51"]
[EventDate "2019.08.03"]
[EventType "swiss"]
[EventCountry "GER"]
[SourceTitle "playchess.com"]
[Source "ChessBase"]
[SourceQuality "1"]
[TimeControl "600+5"]

1. Nf3 {[%emt 0:00:00]} d5 {[%emt 0:00:00]} 2. e3 {[%emt 0:00:04]} Bg4 {[%emt 0:00:00]} 3. h3 {[%emt 0:00:10]} Bh5 {[%emt 0:00:02]} 4. Be2 {[%emt 0:00:34]} Nf6 {[%emt 0:00:08]} 5. Ne5 {[%emt 0:00:13]} Bxe2 {[%emt 0:00:06]} 6. Qxe2 {[%emt 0:00:03]} e6 {[%emt 0:00:17]} 7. O-O {[%emt 0:00:20]} Qd6 {[%emt 0:00:18]} 8. f4 {[%emt 0:00:12]} Nbd7 {[%emt 0:00:10]} 9. d4 {[%emt 0:00:08]} Ne4 {[%emt 0:00:13]} 10. Kh2 {[%emt 0:00:28]} O-O-O {[%emt 0:00:30]} 11. c4 {[%emt 0:00:24]} Qe7 {[%emt 0:00:24]} 12. Nc3 {[%emt 0:00:33]} Nxe5 {[%emt 0:00:31]} 13. fxe5 {[%emt 0:00:41]} Qg5 {[%emt 0:00:41]} 14. Nxe4 {[%emt 0:00:06]} dxe4 {[%emt 0:00:06]} 15. Rxf7 {[%emt 0:00:22]} Be7 {[%emt 0:00:17]} 16. Bd2 {[%emt 0:00:53]} h5 {[%emt 0:00:22]} 17. Raf1 {[%emt 0:00:36]} h4 {[%emt 0:00:10]} 18. R7f4 {[%emt 0:01:18]} Qg3+ {[%emt 0:00:21]} 19. Kh1 {[%emt 0:00:02]} Qg5 {[%emt 0:00:33]} 20. Rxe4 {[%emt 0:00:08]} Rhf8 {[%emt 0:00:14]} 21. Ref4 {[%emt 0:00:15]} Rxf4 {[%emt 0:00:23]} 22. exf4 {[%emt 0:00:10]} Qg6 {[%emt 0:00:23]} 23. Qe3 {[%emt 0:00:39]} Qc2 {[%emt 0:00:26]} 24. Qc3 {[%emt 0:00:32]} Qf5 {[%emt 0:00:17]} 25. Kg1 {[%emt 0:00:34]} g5 {[%emt 0:00:37]} 26. fxg5 {[%emt 0:02:45]} 1-0

[Event "NSV Open-ch Rapid 2019"]
[Site "Lueneburg"]
[Date "2019.08.03"]
[Round "2.24"]
[White "Marzik, Arne"]
[Black "Dralle, Hannes"]
[Result "1-0"]
[ECO "E67"]
[WhiteElo "1366"]
[BlackElo "1732"]
[Annotator "NA RC"]
[PlyCount "49"]
[EventDate "2019.08.03"]
[EventType "swiss"]
[EventCountry "GER"]
[SourceTitle "playchess.com"]
[Source "ChessBase"]
[SourceQuality "1"]
[TimeControl "600+5"]

1. d4 {[%emt 0:00:00]} Nf6 {[%emt 0:00:00]} 2. Nf3 {[%emt 0:00:02]} g6 {[%emt 0:00:00]} 3. g3 {[%emt 0:00:01]} Bg7 {[%emt 0:00:00]} 4. Bg2 {[%emt 0:00:01]} O-O {[%emt 0:00:00]} 5. O-O {[%emt 0:00:02]} d6 {[%emt 0:00:08]} 6. c4 {[%emt 0:00:03]} Nbd7 {[%emt 0:00:05]} 7. Nc3 {[%emt 0:00:02]} e5 {[%emt 0:00:21]} 8. e3 {[%emt 0:01:18]} exd4 {[%emt 0:00:31]} 9. exd4 {[%emt 0:00:07]} Nb6 {[%emt 0:00:35]} 10. b3 {[%emt 0:00:39]} c5 {[%emt 0:00:59]} 11. Bg5 {[%emt 0:00:18]} Qc7 {[%emt 0:01:01]} 12. Nb5 {[%emt 0:00:57]} Qd7 {[%emt 0:00:25]} 13. Rc1 {[%emt 0:02:53]} Ne4 {[%emt 0:00:44]} 14. Bf4 {[%emt 0:01:23]} a6 {[%emt 0:00:05]} 15. dxc5 {[%emt 0:00:29]} axb5 {[%emt 0:00:53]} 16. cxb6 {[%emt 0:00:20]} Rxa2 {[%emt 0:00:36]} 17. Nd4 {[%emt 0:00:39]} Nc5 {[%emt 0:02:58]} 18. Nxb5 {[%emt 0:00:43]} Qf5 {[%emt 0:00:46]} 19. Nxd6 {[%emt 0:00:39]} Qd7 {[%emt 0:00:25]} 20. Nxc8 {[%emt 0:00:04]} Qxc8 {[%emt 0:00:01]} 21. Rb1 {[%emt 0:00:34]} Rd8 {[%emt 0:00:05]} 22. Qf3 {[%emt 0:00:07]} Ra3 {[%emt 0:00:23]} 23. Bc7 {[%emt 0:00:04]} Rd3 {[%emt 0:00:08]} 24. Qe2 {[%emt 0:00:25]} Nxb3 {[%emt 0:00:12]} 25. Qxd3 {[%emt 0:00:04]} 1-0

[Event "NSV Open-ch Rapid 2019"]
[Site "Lueneburg"]
[Date "2019.08.03"]
[Round "2.26"]
[White "Kolhoff, Manfred"]
[Black "Aarav Dengla"]
[Result "0-1"]
[ECO "C42"]
[WhiteElo "1616"]
[BlackElo "2051"]
[Annotator "NA RC"]
[PlyCount "98"]
[EventDate "2019.08.03"]
[EventType "swiss"]
[EventCountry "GER"]
[SourceTitle "playchess.com"]
[Source "ChessBase"]
[SourceQuality "1"]
[TimeControl "600+5"]

1. e4 {[%emt 0:00:00]} e5 {[%emt 0:00:00]} 2. Nf3 {[%emt 0:00:00]} Nf6 {[%emt 0:00:00]} 3. Nc3 {[%emt 0:00:04]} Bb4 {[%emt 0:00:00]} 4. d3 {[%emt 0:00:28]} d5 {[%emt 0:00:00]} 5. Bd2 {[%emt 0:00:08]} d4 {[%emt 0:00:37]} 6. Ne2 {[%emt 0:00:03]} Bxd2+ {[%emt 0:00:11]} 7. Qxd2 {[%emt 0:00:08]} Nc6 {[%emt 0:00:07]} 8. g3 {[%emt 0:00:04]} h6 {[%emt 0:00:11]} 9. Bg2 {[%emt 0:00:01]} Be6 {[%emt 0:00:04]} 10. O-O {[%emt 0:00:02]} Qd7 {[%emt 0:00:01]} 11. b4 {[%emt 0:00:42]} a6 {[%emt 0:00:46]} 12. a4 {[%emt 0:00:02]} O-O {[%emt 0:00:10]} 13. b5 {[%emt 0:00:01]} axb5 {[%emt 0:00:01]} 14. axb5 {[%emt 0:00:01]} Ne7 {[%emt 0:00:03]} 15. Nxe5 {[%emt 0:00:12]} Qxb5 {[%emt 0:00:02]} 16. f4 {[%emt 0:00:24]} Qb2 {[%emt 0:00:53]} 17. Rab1 {[%emt 0:00:08]} Qa3 {[%emt 0:00:18]} 18. Nxd4 {[%emt 0:00:16]} Qc5 {[%emt 0:00:11]} 19. c3 {[%emt 0:00:35]} Ra2 {[%emt 0:00:08]} 20. Rb2 {[%emt 0:00:19]} Rfa8 {[%emt 0:00:21]} 21. Kh1 {[%emt 0:00:04]} Rxb2 {[%emt 0:01:02]} 22. Qxb2 {[%emt 0:00:04]} b6 {[%emt 0:00:01]} 23. Nxe6 {[%emt 0:00:07]} fxe6 {[%emt 0:00:02]} 24. d4 {[%emt 0:00:48]} Qa3 {[%emt 0:00:20]} 25. Qc2 {[%emt 0:00:24]} Qa2 {[%emt 0:00:14]} 26. Qd3 {[%emt 0:00:17]} Ra3 {[%emt 0:00:57]} 27. Nc4 {[%emt 0:00:50]} Ra4 {[%emt 0:00:37]} 28. Ne5 {[%emt 0:00:07]} Ra3 {[%emt 0:00:04]} 29. Rc1 {[%emt 0:00:26]} Qb2 {[%emt 0:00:10]} 30. Qe3 {[%emt 0:00:25]} Ra1 {[%emt 0:01:02]} 31. Nd3 {[%emt 0:00:05]} Rxc1+ {[%emt 0:00:15]} 32. Qxc1 {[%emt 0:00:04]} Qe2 {[%emt 0:00:15]} 33. e5 {[%emt 0:01:16]} Qxd3 {[%emt 0:00:27]} 34. exf6 {[%emt 0:00:02]} gxf6 {[%emt 0:00:03]} 35. Qe1 {[%emt 0:00:24]} Kf7 {[%emt 0:00:08]} 36. Be4 {[%emt 0:00:11]} Qb5 {[%emt 0:00:11]} 37. h4 {[%emt 0:00:46]} Qh5 {[%emt 0:00:22]} 38. c4 {[%emt 0:00:25]} Qg4 {[%emt 0:00:10]} 39. Bg2 {[%emt 0:00:35]} Nf5 {[%emt 0:00:09]} 40. Kh2 {[%emt 0:00:12]} Nxd4 {[%emt 0:00:01]} 41. Qe4 {[%emt 0:00:35]} Nf5 {[%emt 0:00:18]} 42. Qc6 {[%emt 0:00:09]} Qxg3+ {[%emt 0:00:34]} 43. Kg1 {[%emt 0:00:07]} Qe3+ {[%emt 0:00:04]} 44. Kh2 {[%emt 0:00:04]} Qxf4+ {[%emt 0:00:03]} 45. Kg1 {[%emt 0:00:04]} Qe3+ {[%emt 0:00:01]} 46. Kh2 {[%emt 0:00:01]} Qf4+ {[%emt 0:00:01]} 47. Kg1 {[%emt 0:00:01]} Qd4+ {[%emt 0:00:19]} 48. Kf1 {[%emt 0:00:38]} Qd6 {[%emt 0:00:33]} 49. Qe4 {[%emt 0:00:18]} Ng3+ {[%emt 0:00:02]} 0-1

[Event "NSV Open-ch Rapid 2019"]
[Site "Lueneburg"]
[Date "2019.08.03"]
[Round "3.1"]
[White "Vorobiov, Evgeny E."]
[Black "Ertan, Can"]
[Result "1-0"]
[ECO "E12"]
[WhiteElo "2578"]
[BlackElo "2396"]
[Annotator "RC"]
[PlyCount "53"]
[EventDate "2019.08.03"]
[EventType "swiss"]
[EventCountry "GER"]
[SourceTitle "playchess.com"]
[Source "ChessBase"]
[SourceQuality "1"]
[TimeControl "600+5"]

1. d4 {[%emt 0:00:00]} Nf6 {[%emt 0:00:00]} 2. c4 {[%emt 0:00:00]} e6 {[%emt 0:00:00]} 3. Nf3 {[%emt 0:00:00]} b6 {[%emt 0:00:00]} 4. Bf4 {[%emt 0:00:02]} Bb7 {[%emt 0:00:21]} 5. e3 {[%emt 0:00:02]} Bb4+ {[%emt 0:00:26]} 6. Nfd2 {[%emt 0:00:02]} O-O {[%emt 0:00:07]} 7. a3 {[%emt 0:00:08]} Be7 {[%emt 0:00:03]} 8. Nc3 {[%emt 0:00:01]} d5 {[%emt 0:00:01]} 9. cxd5 {[%emt 0:00:09]} Nxd5 {[%emt 0:00:18]} 10. Nxd5 {[%emt 0:00:03]} exd5 {[%emt 0:00:08]} 11. b4 {[%emt 0:01:58]} Nd7 {[%emt 0:00:37]} 12. Bd3 {[%emt 0:00:43]} c5 {[%emt 0:00:01]} 13. bxc5 {[%emt 0:00:31]} bxc5 {[%emt 0:00:01]} 14. Bxh7+ {[%emt 0:01:22]} Kxh7 {[%emt 0:00:36]} 15. Qb1+ {[%emt 0:00:01]} Kg8 {[%emt 0:00:05]} 16. Qxb7 {[%emt 0:00:02]} cxd4 {[%emt 0:00:01]} 17. exd4 {[%emt 0:00:32]} Bf6 {[%emt 0:00:06]} 18. Qxd5 {[%emt 0:01:17]} Re8+ {[%emt 0:00:19]} 19. Be3 {[%emt 0:00:05]} Bg5 {[%emt 0:02:01]} 20. O-O {[%emt 0:00:44]} Rxe3 {[%emt 0:00:02]} 21. fxe3 {[%emt 0:00:16]} Bxe3+ {[%emt 0:00:01]} 22. Kh1 {[%emt 0:00:18]} Bxd2 {[%emt 0:00:02]} 23. Rxf7 {[%emt 0:00:14]} Nb6 {[%emt 0:00:19]} 24. Qe6 {[%emt 0:01:38]} Kh8 {[%emt 0:00:33]} 25. Raf1 {[%emt 0:00:11]} Qd5 {[%emt 0:01:44]} 26. Qg6 {[%emt 0:00:12]} Rg8 {[%emt 0:00:27]} 27. R1f5 {[%emt 0:00:25]} 1-0

[Event "NSV Open-ch Rapid 2019"]
[Site "Lueneburg"]
[Date "2019.08.03"]
[Round "3.11"]
[White "Chennaoui, Yasin"]
[Black "Britsch, Benjamin"]
[Result "1-0"]
[ECO "A13"]
[WhiteElo "2092"]
[BlackElo "1835"]
[Annotator "NA RC"]
[PlyCount "55"]
[EventDate "2019.08.03"]
[EventType "swiss"]
[EventCountry "GER"]
[SourceTitle "playchess.com"]
[Source "ChessBase"]
[SourceQuality "1"]
[TimeControl "600+5"]

1. c4 {[%emt 0:00:00]} e6 {[%emt 0:00:00]} 2. g3 {[%emt 0:00:00]} d5 {[%emt 0:00:08]} 3. Bg2 {[%emt 0:00:00]} dxc4 {[%emt 0:00:04]} 4. Qa4+ {[%emt 0:00:13]} Bd7 {[%emt 0:00:08]} 5. Qxc4 {[%emt 0:00:02]} Bc6 {[%emt 0:00:01]} 6. Bxc6+ {[%emt 0:00:18]} Nxc6 {[%emt 0:00:01]} 7. Nf3 {[%emt 0:00:03]} Nf6 {[%emt 0:00:10]} 8. Nc3 {[%emt 0:00:05]} Be7 {[%emt 0:00:09]} 9. O-O {[%emt 0:00:05]} O-O {[%emt 0:00:04]} 10. d4 {[%emt 0:00:16]} Qd7 {[%emt 0:00:11]} 11. Bf4 {[%emt 0:00:29]} Nd5 {[%emt 0:00:07]} 12. Nxd5 {[%emt 0:00:06]} exd5 {[%emt 0:00:02]} 13. Qb5 {[%emt 0:00:11]} Rab8 {[%emt 0:00:18]} 14. Rac1 {[%emt 0:00:02]} a6 {[%emt 0:00:02]} 15. Qb3 {[%emt 0:00:03]} f6 {[%emt 0:00:26]} 16. e4 {[%emt 0:00:14]} Rfd8 {[%emt 0:00:09]} 17. Rfe1 {[%emt 0:00:07]} Kf8 {[%emt 0:00:21]} 18. exd5 {[%emt 0:00:04]} Qxd5 {[%emt 0:00:04]} 19. Qxd5 {[%emt 0:00:04]} Rxd5 {[%emt 0:00:01]} 20. Bxc7 {[%emt 0:00:02]} Rc8 {[%emt 0:00:01]} 21. Bf4 {[%emt 0:00:08]} Rcd8 {[%emt 0:00:10]} 22. Be3 {[%emt 0:00:13]} f5 {[%emt 0:00:43]} 23. h4 {[%emt 0:01:08]} Bf6 {[%emt 0:00:02]} 24. Rc5 {[%emt 0:00:03]} Nxd4 {[%emt 0:01:09]} 25. Nxd4 {[%emt 0:00:02]} Bxd4 {[%emt 0:00:04]} 26. Rxd5 {[%emt 0:00:02]} Rxd5 {[%emt 0:00:01]} 27. Rd1 {[%emt 0:00:02]} f4 {[%emt 0:00:41]} 28. Rxd4 {[%emt 0:00:16]} 1-0

[Event "NSV Open-ch Rapid 2019"]
[Site "Lueneburg"]
[Date "2019.08.03"]
[Round "3.12"]
[White "Weidenhoefer, Max"]
[Black "Daemmig, Matthias"]
[Result "0-1"]
[ECO "B29"]
[WhiteElo "1805"]
[BlackElo "2059"]
[Annotator "NA RC"]
[PlyCount "99"]
[EventDate "2019.08.03"]
[EventType "swiss"]
[EventCountry "GER"]
[SourceTitle "playchess.com"]
[Source "ChessBase"]
[SourceQuality "1"]
[TimeControl "600+5"]

1. e4 {[%emt 0:00:00]} c5 {[%emt 0:00:00]} 2. Nf3 {[%emt 0:00:00]} Nf6 {[%emt 0:00:00]} 3. Nc3 {[%emt 0:00:02]} d5 {[%emt 0:00:00]} 4. exd5 {[%emt 0:01:09]} Nxd5 {[%emt 0:00:00]} 5. Nxd5 {[%emt 0:00:06]} Qxd5 {[%emt 0:00:00]} 6. d3 {[%emt 0:00:10]} Nc6 {[%emt 0:00:03]} 7. Be2 {[%emt 0:00:06]} g6 {[%emt 0:00:08]} 8. O-O {[%emt 0:00:13]} Bg7 {[%emt 0:00:03]} 9. Rb1 {[%emt 0:00:08]} Qxa2 {[%emt 0:00:29]} 10. Be3 {[%emt 0:00:40]} Qd5 {[%emt 0:00:03]} 11. Qd2 {[%emt 0:00:19]} O-O {[%emt 0:00:05]} 12. Bh6 {[%emt 0:00:04]} b6 {[%emt 0:00:50]} 13. h3 {[%emt 0:00:46]} Bb7 {[%emt 0:00:01]} 14. Nh2 {[%emt 0:00:28]} Nd4 {[%emt 0:00:14]} 15. Bf3 {[%emt 0:00:10]} Nxf3+ {[%emt 0:00:04]} 16. Nxf3 {[%emt 0:00:01]} Rfe8 {[%emt 0:01:03]} 17. Bxg7 {[%emt 0:00:13]} Kxg7 {[%emt 0:00:01]} 18. Rfe1 {[%emt 0:00:08]} e5 {[%emt 0:00:14]} 19. Qc3 {[%emt 0:00:25]} f6 {[%emt 0:00:01]} 20. b4 {[%emt 0:00:14]} cxb4 {[%emt 0:00:14]} 21. Rxb4 {[%emt 0:00:05]} Rec8 {[%emt 0:00:54]} 22. Qd2 {[%emt 0:00:20]} Qa5 {[%emt 0:00:02]} 23. c4 {[%emt 0:00:46]} Rd8 {[%emt 0:00:16]} 24. Qb2 {[%emt 0:00:31]} Bxf3 {[%emt 0:00:05]} 25. gxf3 {[%emt 0:00:06]} Rxd3 {[%emt 0:00:24]} 26. Re3 {[%emt 0:00:12]} Rad8 {[%emt 0:00:13]} 27. Rb3 {[%emt 0:00:21]} Rd1+ {[%emt 0:00:16]} 28. Kg2 {[%emt 0:00:03]} Qa6 {[%emt 0:00:26]} 29. Qc2 {[%emt 0:00:31]} R8d4 {[%emt 0:00:03]} 30. Red3 {[%emt 0:00:34]} Qa1 {[%emt 0:00:28]} 31. Qxd1 {[%emt 0:00:30]} Qxd1 {[%emt 0:00:04]} 32. Rxd1 {[%emt 0:00:05]} Rxd1 {[%emt 0:00:01]} 33. Ra3 {[%emt 0:00:03]} Rd7 {[%emt 0:00:04]} 34. Kg3 {[%emt 0:00:13]} Kf7 {[%emt 0:00:01]} 35. f4 {[%emt 0:00:02]} Ke6 {[%emt 0:00:02]} 36. fxe5 {[%emt 0:00:03]} Kxe5 {[%emt 0:00:02]} 37. Ra1 {[%emt 0:00:09]} Rc7 {[%emt 0:00:03]} 38. Re1+ {[%emt 0:00:07]} Kd6 {[%emt 0:00:09]} 39. Rd1+ {[%emt 0:00:07]} Kc5 {[%emt 0:00:02]} 40. Rc1 {[%emt 0:00:07]} a5 {[%emt 0:00:01]} 41. Kf3 {[%emt 0:00:03]} a4 {[%emt 0:00:03]} 42. Ra1 {[%emt 0:00:06]} Ra7 {[%emt 0:00:01]} 43. Ke3 {[%emt 0:00:06]} Kxc4 {[%emt 0:00:01]} 44. Rc1+ {[%emt 0:00:02]} Kd5 {[%emt 0:00:06]} 45. Rd1+ {[%emt 0:00:05]} Ke6 {[%emt 0:00:02]} 46. Rb1 {[%emt 0:00:02]} Ra6 {[%emt 0:00:04]} 47. Kd4 {[%emt 0:00:07]} a3 {[%emt 0:00:01]} 48. Kc3 {[%emt 0:00:20]} a2 {[%emt 0:00:01]} 49. Re1+ {[%emt 0:00:05]} Kf5 {[%emt 0:00:07]} 50. Kd4 {[%emt 0:02:57] Ke5+} 0-1